[Event "*** MasterClass Titled Tuesday Blitz"]
[Site "Chess.com"]
[Date "2017.12.05"]
[Round "6"]
[White "VladDobrov"]
[Black "temiksmozg"]
[Result "1-0"]
[WhiteElo "2619"]
[BlackElo "2512"]
[TimeControl "180+2"]
[EndTime "15:29:17 PST"]
[Termination "VladDobrov won by resignation"]

1. d4 {[%clk 0:03:01.9]} 1... f5 {[%clk 0:02:59.6]} 2. e4 {[%clk 0:03:01.9]}
2... fxe4 {[%clk 0:03:00.4]} 3. Nc3 {[%clk 0:03:03.1]} 3... Nf6 {[%clk
0:03:01.4]} 4. Bg5 {[%clk 0:03:03.6]} 4... Nc6 {[%clk 0:03:02.7]} 5. d5 {[%clk
0:03:04.6]} 5... Ne5 {[%clk 0:03:02.7]} 6. Qe2 {[%clk 0:03:06]} 6... Nf7 {[%clk
0:02:54.1]} 7. Bxf6 {[%clk 0:03:06.8]} 7... exf6 {[%clk 0:02:56]} 8. Nxe4 {[%clk
0:03:07.6]} 8... Qe7 {[%clk 0:02:28.9]} 9. d6 {[%clk 0:03:08.7]} 9... Nxd6
{[%clk 0:02:27.7]} 10. Nxd6+ {[%clk 0:03:09]} 10... cxd6 {[%clk 0:02:29.6]} 11.
O-O-O {[%clk 0:03:09.8]} 11... Qxe2 {[%clk 0:02:22.1]} 12. Bxe2 {[%clk
0:03:01.7]} 12... d5 {[%clk 0:02:09.7]} 13. Bf3 {[%clk 0:03:01.7]} 13... Bc5
{[%clk 0:02:07]} 14. Nh3 {[%clk 0:02:42.1]} 14... Kd8 {[%clk 0:01:45.8]} 15.
Rhf1 {[%clk 0:02:21.5]} 15... Re8 {[%clk 0:01:14.2]} 16. Nf4 {[%clk 0:02:21.3]}
16... Bd6 {[%clk 0:00:56.7]} 17. Nxd5 {[%clk 0:02:20.5]} 17... Be5 {[%clk
0:00:55.9]} 18. g3 {[%clk 0:02:17.1]} 18... Rb8 {[%clk 0:00:52.4]} 19. Bg2
{[%clk 0:02:17]} 19... b5 {[%clk 0:00:47.4]} 20. f4 {[%clk 0:02:17.6]} 20... Bc7
{[%clk 0:00:48.8]} 21. Nb4 {[%clk 0:01:50.5]} 21... Bb7 {[%clk 0:00:36.4]} 22.
Bc6 {[%clk 0:01:51]} 22... Bd6 {[%clk 0:00:19]} 23. Rxd6 {[%clk 0:01:43.9]}
23... Bxc6 {[%clk 0:00:19.9]} 24. Nxc6+ {[%clk 0:01:35.3]} 24... Kc7 {[%clk
0:00:21.3]} 25. Nxb8 {[%clk 0:01:36.7]} 25... Kxd6 {[%clk 0:00:22.8]} 26. Rd1+
{[%clk 0:01:38.1]} 26... Kc7 {[%clk 0:00:20.9]} 27. Nxd7 {[%clk 0:01:38.3]} 1-0

[Event "*** MasterClass Titled Tuesday Blitz"]
[Site "Chess.com"]
[Date "2017.12.05"]
[Round "6"]
[White "Kaphrep"]
[Black "1e41-0"]
[Result "1-0"]
[WhiteElo "2579"]
[BlackElo "2346"]
[TimeControl "180+2"]
[EndTime "15:29:50 PST"]
[Termination "Kaphrep won by checkmate"]

1. Nf3 {[%clk 0:02:54.7]} 1... d5 {[%clk 0:03:00.7]} 2. d4 {[%clk 0:02:50.3]}
2... Nf6 {[%clk 0:03:01.2]} 3. c4 {[%clk 0:02:47]} 3... c6 {[%clk 0:03:02.3]} 4.
e3 {[%clk 0:02:45.8]} 4... Bf5 {[%clk 0:03:01.7]} 5. Nc3 {[%clk 0:02:45.5]} 5...
e6 {[%clk 0:03:02.6]} 6. Bd3 {[%clk 0:02:43.6]} 6... Bxd3 {[%clk 0:03:03.2]} 7.
Qxd3 {[%clk 0:02:45.5]} 7... Bd6 {[%clk 0:02:58.7]} 8. O-O {[%clk 0:02:42.6]}
8... O-O {[%clk 0:02:58.9]} 9. e4 {[%clk 0:02:42]} 9... dxe4 {[%clk 0:02:59.8]}
10. Nxe4 {[%clk 0:02:43.9]} 10... Nxe4 {[%clk 0:03:01.1]} 11. Qxe4 {[%clk
0:02:43.2]} 11... Nd7 {[%clk 0:03:02.6]} 12. Re1 {[%clk 0:02:31.4]} 12... Qe7
{[%clk 0:02:55.8]} 13. Bg5 {[%clk 0:02:27.3]} 13... Nf6 {[%clk 0:02:52.2]} 14.
Qc2 {[%clk 0:02:21.3]} 14... Rfd8 {[%clk 0:02:50.6]} 15. Rad1 {[%clk 0:02:19.5]}
15... h6 {[%clk 0:02:50.7]} 16. Bh4 {[%clk 0:02:14.3]} 16... Bc7 {[%clk
0:02:33.7]} 17. Ne5 {[%clk 0:02:08.3]} 17... Bb6 {[%clk 0:02:28.6]} 18. c5
{[%clk 0:01:57.1]} 18... Bc7 {[%clk 0:02:29.4]} 19. Ng4 {[%clk 0:01:54.8]} 19...
Rd5 {[%clk 0:02:11.9]} 20. Bxf6 {[%clk 0:01:53.7]} 20... gxf6 {[%clk 0:02:13.8]}
21. Nxh6+ {[%clk 0:01:51.7]} 21... Kg7 {[%clk 0:02:14.4]} 22. Nf5+ {[%clk
0:01:50.5]} 22... Rxf5 {[%clk 0:02:13.6]} 23. Qxf5 {[%clk 0:01:51.1]} 23...
Bxh2+ {[%clk 0:02:04]} 24. Kf1 {[%clk 0:01:52]} 24... Rh8 {[%clk 0:01:57.8]} 25.
Qg4+ {[%clk 0:01:48]} 25... Kf8 {[%clk 0:01:58.7]} 26. g3 {[%clk 0:01:45.6]}
26... f5 {[%clk 0:01:59.8]} 27. Qf4 {[%clk 0:01:38.4]} 27... Qf6 {[%clk
0:01:49.8]} 28. Qd6+ {[%clk 0:01:30.7]} 28... Kg8 {[%clk 0:01:47.5]} 29. Qb8+
{[%clk 0:01:23.5]} 29... Kg7 {[%clk 0:01:13.7]} 30. Qe5 {[%clk 0:01:25.4]} 30...
Qxe5 {[%clk 0:01:14.1]} 31. dxe5 {[%clk 0:01:17.9]} 31... f4 {[%clk 0:00:58.8]}
32. Kg2 {[%clk 0:01:18.7]} 32... f6 {[%clk 0:00:53.5]} 33. Rd7+ {[%clk
0:01:15.6]} 33... Kg6 {[%clk 0:00:54.3]} 34. exf6 {[%clk 0:01:16.8]} 34... Kxf6
{[%clk 0:00:55.7]} 35. Rd6 {[%clk 0:01:17.9]} 35... Kf5 {[%clk 0:00:53.9]} 36.
Rdxe6 {[%clk 0:01:10.7]} 36... Kg4 {[%clk 0:00:54.4]} 37. f3+ {[%clk 0:01:09.4]}
37... Kf5 {[%clk 0:00:52.2]} 38. R1e5# {[%clk 0:01:10.3]} 1-0

[Event "*** MasterClass Titled Tuesday Blitz"]
[Site "Chess.com"]
[Date "2017.12.05"]
[Round "6"]
[White "yurisolo"]
[Black "TijanaBlagojevic"]
[Result "1-0"]
[WhiteElo "2507"]
[BlackElo "2321"]
[TimeControl "180+2"]
[EndTime "15:29:54 PST"]
[Termination "yurisolo won by resignation"]

1. e4 {[%clk 0:03:01.2]} 1... e5 {[%clk 0:03:00.6]} 2. Nf3 {[%clk 0:03:01.4]}
2... Nc6 {[%clk 0:03:01.8]} 3. Bb5 {[%clk 0:02:59.9]} 3... Nf6 {[%clk
0:03:02.6]} 4. O-O {[%clk 0:02:59.8]} 4... Nxe4 {[%clk 0:03:02.9]} 5. Re1 {[%clk
0:02:59.3]} 5... Nd6 {[%clk 0:03:04]} 6. Ba4 {[%clk 0:02:58.4]} 6... Be7 {[%clk
0:02:56]} 7. Nc3 {[%clk 0:02:58.2]} 7... O-O {[%clk 0:02:53.2]} 8. d4 {[%clk
0:02:58]} 8... exd4 {[%clk 0:02:49.7]} 9. Nd5 {[%clk 0:02:56.7]} 9... b5 {[%clk
0:02:50]} 10. Nxd4 {[%clk 0:02:36.5]} 10... Bf6 {[%clk 0:02:13]} 11. Nxb5 {[%clk
0:02:29.8]} 11... Nxb5 {[%clk 0:02:01.6]} 12. Bxb5 {[%clk 0:02:31.6]} 12... Bb7
{[%clk 0:02:00.8]} 13. Bf1 {[%clk 0:02:12.3]} 13... Nd4 {[%clk 0:01:51.6]} 14.
Nxf6+ {[%clk 0:02:06.9]} 14... Qxf6 {[%clk 0:01:53.5]} 15. c3 {[%clk 0:02:05.6]}
15... Ne6 {[%clk 0:01:19.7]} 16. Qxd7 {[%clk 0:02:04.8]} 16... Rad8 {[%clk
0:01:13.5]} 17. Qb5 {[%clk 0:02:00.8]} 17... Ba8 {[%clk 0:01:14.2]} 18. Be3
{[%clk 0:01:56.3]} 18... Rd5 {[%clk 0:01:14.4]} 19. Qa4 {[%clk 0:01:43.3]} 19...
Rh5 {[%clk 0:01:14.8]} 20. f3 {[%clk 0:01:19.7]} 20... Qe5 {[%clk 0:01:03.4]}
21. h3 {[%clk 0:01:19]} 21... Rxh3 {[%clk 0:00:44.8]} 22. gxh3 {[%clk
0:01:09.4]} 22... Qg3+ {[%clk 0:00:45.6]} 23. Bg2 {[%clk 0:01:06.1]} 23... Bxf3
{[%clk 0:00:46.2]} 24. Qc2 {[%clk 0:01:04.7]} 24... Bxg2 {[%clk 0:00:16.4]} 25.
Qxg2 {[%clk 0:01:03.8]} 25... Qd6 {[%clk 0:00:18.3]} 26. Rad1 {[%clk 0:01:02.4]}
26... Qc6 {[%clk 0:00:18.5]} 1-0

[Event "*** MasterClass Titled Tuesday Blitz"]
[Site "Chess.com"]
[Date "2017.12.05"]
[Round "6"]
[White "LastHeroJr"]
[Black "wanyaland"]
[Result "1-0"]
[WhiteElo "2408"]
[BlackElo "2241"]
[TimeControl "180+2"]
[EndTime "15:29:54 PST"]
[Termination "LastHeroJr won by resignation"]

1. e4 {[%clk 0:03:01.9]} 1... c5 {[%clk 0:02:59.5]} 2. Nf3 {[%clk 0:03:03]} 2...
e6 {[%clk 0:03:00.4]} 3. d4 {[%clk 0:03:04]} 3... cxd4 {[%clk 0:03:02.3]} 4.
Nxd4 {[%clk 0:03:05.9]} 4... Nc6 {[%clk 0:03:01.9]} 5. Nc3 {[%clk 0:03:07.1]}
5... a6 {[%clk 0:03:01.8]} 6. Nxc6 {[%clk 0:03:06.8]} 6... bxc6 {[%clk
0:03:02.2]} 7. Bd3 {[%clk 0:03:08.4]} 7... d5 {[%clk 0:03:02.8]} 8. O-O {[%clk
0:03:09.5]} 8... Nf6 {[%clk 0:03:03.1]} 9. Re1 {[%clk 0:03:11]} 9... Be7 {[%clk
0:03:03.1]} 10. e5 {[%clk 0:03:12.4]} 10... Nd7 {[%clk 0:03:03.5]} 11. Qg4
{[%clk 0:03:13.4]} 11... Kf8 {[%clk 0:03:03.3]} 12. Na4 {[%clk 0:03:11.7]} 12...
Nc5 {[%clk 0:02:58.2]} 13. Nxc5 {[%clk 0:03:04.7]} 13... Bxc5 {[%clk 0:03:00.1]}
14. c4 {[%clk 0:02:51.8]} 14... h5 {[%clk 0:02:59.1]} 15. Qe2 {[%clk 0:02:44.5]}
15... g6 {[%clk 0:02:55.8]} 16. Bd2 {[%clk 0:02:28.9]} 16... Rb8 {[%clk
0:02:53.3]} 17. b3 {[%clk 0:02:22.7]} 17... a5 {[%clk 0:02:48.8]} 18. cxd5
{[%clk 0:02:16.7]} 18... cxd5 {[%clk 0:02:46.7]} 19. Rac1 {[%clk 0:02:07.9]}
19... Be7 {[%clk 0:02:47]} 20. Bb5 {[%clk 0:01:34.7]} 20... Bb7 {[%clk
0:02:37.1]} 21. Bc6 {[%clk 0:01:15.8]} 21... Bxc6 {[%clk 0:02:35.7]} 22. Rxc6
{[%clk 0:01:16.5]} 22... Ra8 {[%clk 0:02:33]} 23. Rec1 {[%clk 0:01:15.4]} 23...
Kg7 {[%clk 0:02:32.8]} 24. Rc7 {[%clk 0:01:11.6]} 24... a4 {[%clk 0:02:25.3]}
25. b4 {[%clk 0:01:10.7]} 25... a3 {[%clk 0:02:15.1]} 26. b5 {[%clk 0:01:11.7]}
26... Rb8 {[%clk 0:02:12]} 27. Ba5 {[%clk 0:01:12.3]} 27... Qe8 {[%clk
0:02:11.2]} 28. b6 {[%clk 0:01:05]} 28... Bg5 {[%clk 0:02:11.8]} 29. R1c6 {[%clk
0:01:04.4]} 29... Bd8 {[%clk 0:01:47.6]} 30. Rc8 {[%clk 0:00:59]} 30... Rxc8
{[%clk 0:01:47.6]} 31. Rxc8 {[%clk 0:01:00.9]} 31... Qd7 {[%clk 0:01:46.8]} 32.
Qa6 {[%clk 0:00:55.2]} 32... Qa4 {[%clk 0:01:39.9]} 33. b7 {[%clk 0:00:54.9]}
1-0

[Event "*** MasterClass Titled Tuesday Blitz"]
[Site "Chess.com"]
[Date "2017.12.05"]
[Round "6"]
[White "Alexander_Moskalenko"]
[Black "platy3"]
[Result "1/2-1/2"]
[WhiteElo "2746"]
[BlackElo "2557"]
[TimeControl "180+2"]
[EndTime "15:30:00 PST"]
[Termination "Game drawn by agreement"]

1. d4 {[%clk 0:03:01.9]} 1... Nf6 {[%clk 0:03:00.4]} 2. Nf3 {[%clk 0:03:01.8]}
2... e6 {[%clk 0:03:01.6]} 3. e3 {[%clk 0:03:02]} 3... b6 {[%clk 0:03:01.2]} 4.
Bd3 {[%clk 0:03:03.9]} 4... Bb7 {[%clk 0:03:02.3]} 5. c4 {[%clk 0:03:04.4]} 5...
d5 {[%clk 0:02:58.2]} 6. cxd5 {[%clk 0:03:03.3]} 6... exd5 {[%clk 0:02:52.9]} 7.
O-O {[%clk 0:02:51.7]} 7... Nbd7 {[%clk 0:02:53.9]} 8. b3 {[%clk 0:02:50.7]}
8... Bd6 {[%clk 0:02:53.3]} 9. Bb2 {[%clk 0:02:52.2]} 9... O-O {[%clk
0:02:53.5]} 10. Nc3 {[%clk 0:02:52.2]} 10... a6 {[%clk 0:02:52.8]} 11. Ne2
{[%clk 0:02:53.3]} 11... Re8 {[%clk 0:02:52.9]} 12. Rc1 {[%clk 0:02:53.7]} 12...
Ne4 {[%clk 0:02:46.7]} 13. Ng3 {[%clk 0:02:54.7]} 13... g6 {[%clk 0:02:45.5]}
14. Qc2 {[%clk 0:02:54.3]} 14... Qe7 {[%clk 0:02:45.2]} 15. Ne5 {[%clk
0:02:49.9]} 15... Nxg3 {[%clk 0:02:15.7]} 16. hxg3 {[%clk 0:02:50.1]} 16... Rac8
{[%clk 0:02:11.5]} 17. Nc6 {[%clk 0:02:50.1]} 17... Qg5 {[%clk 0:02:09.3]} 18.
Rfe1 {[%clk 0:02:51.1]} 18... Nf6 {[%clk 0:02:09.4]} 19. Ne5 {[%clk 0:02:42]}
19... Ne4 {[%clk 0:02:05.1]} 20. Qe2 {[%clk 0:02:33.1]} 20... Ra8 {[%clk
0:01:53.4]} 21. Bxe4 {[%clk 0:02:25.9]} 21... dxe4 {[%clk 0:01:52.2]} 22. Nc4
{[%clk 0:02:27.4]} 22... Bb4 {[%clk 0:01:50]} 23. Red1 {[%clk 0:02:28.1]} 23...
a5 {[%clk 0:01:36.3]} 24. Ba3 {[%clk 0:02:25.6]} 24... Qb5 {[%clk 0:01:18.2]}
25. Bxb4 {[%clk 0:02:19.1]} 25... axb4 {[%clk 0:01:18.6]} 26. Rc2 {[%clk
0:02:17.5]} 26... Bd5 {[%clk 0:01:17]} 27. Rdc1 {[%clk 0:02:18.7]} 27... Re7
{[%clk 0:01:14]} 28. Qd2 {[%clk 0:02:17.9]} 28... f6 {[%clk 0:01:11.7]} 29. Ra1
{[%clk 0:02:15]} 29... Rd7 {[%clk 0:01:09.5]} 30. Qc1 {[%clk 0:02:16.1]} 30...
c6 {[%clk 0:01:10.1]} 31. a4 {[%clk 0:02:14]} 31... bxa3 {[%clk 0:01:08.8]} 32.
Rxa3 {[%clk 0:02:15.2]} 32... Rda7 {[%clk 0:01:08.2]} 33. Rca2 {[%clk
0:02:12.4]} 33... Rxa3 {[%clk 0:01:06.5]} 34. Rxa3 {[%clk 0:02:11.8]} 34... Rxa3
{[%clk 0:01:07.3]} 35. Qxa3 {[%clk 0:02:13.7]} 35... Bxc4 {[%clk 0:01:08.5]} 36.
bxc4 {[%clk 0:02:15.6]} 36... Qxc4 {[%clk 0:01:08.9]} 37. Qa8+ {[%clk
0:02:16.9]} 37... Kg7 {[%clk 0:01:08]} 38. Qb7+ {[%clk 0:02:18.8]} 38... Kh6
{[%clk 0:01:04.6]} 39. Qxb6 {[%clk 0:02:19.9]} 39... Qc1+ {[%clk 0:01:00.4]} 40.
Kh2 {[%clk 0:02:20.7]} 40... Qc2 {[%clk 0:01:00.8]} 41. Kg1 {[%clk 0:02:15.2]}
41... Qc1+ {[%clk 0:01:01.5]} 42. Kh2 {[%clk 0:02:14.6]} 42... Qc2 {[%clk
0:01:03.4]} 43. d5 {[%clk 0:01:58.7]} 43... Qd1 {[%clk 0:00:50.3]} 44. dxc6
{[%clk 0:01:49.8]} 44... Qh5+ {[%clk 0:00:50.8]} 45. Kg1 {[%clk 0:01:51.4]}
45... Qd1+ {[%clk 0:00:52.7]} 46. Kh2 {[%clk 0:01:51.9]} 46... Qh5+ {[%clk
0:00:54.6]} 47. Kg1 {[%clk 0:01:51.1]} 47... Qd1+ {[%clk 0:00:56.5]} 1/2-1/2

[Event "*** MasterClass Titled Tuesday Blitz"]
[Site "Chess.com"]
[Date "2017.12.05"]
[Round "6"]
[White "ChessMavenYeti"]
[Black "Scott-fox21"]
[Result "1-0"]
[WhiteElo "2075"]
[BlackElo "2193"]
[TimeControl "180+2"]
[EndTime "15:30:02 PST"]
[Termination "ChessMavenYeti won by resignation"]

1. d4 {[%clk 0:03:01.9]} 1... d5 {[%clk 0:03:01]} 2. c4 {[%clk 0:03:02.5]} 2...
e6 {[%clk 0:03:02.4]} 3. Nc3 {[%clk 0:03:00.3]} 3... c6 {[%clk 0:03:03.8]} 4. e3
{[%clk 0:02:56.6]} 4... Nf6 {[%clk 0:03:04.4]} 5. Nf3 {[%clk 0:02:58.1]} 5...
Bb4 {[%clk 0:03:04.1]} 6. Qc2 {[%clk 0:02:57.1]} 6... a6 {[%clk 0:03:04.7]} 7.
a3 {[%clk 0:02:55.3]} 7... Be7 {[%clk 0:03:03]} 8. Bd3 {[%clk 0:02:53.2]} 8...
dxc4 {[%clk 0:03:03.4]} 9. Bxc4 {[%clk 0:02:54.2]} 9... b5 {[%clk 0:03:04.6]}
10. Bd3 {[%clk 0:02:55.1]} 10... Bb7 {[%clk 0:03:06]} 11. O-O {[%clk 0:02:55.9]}
11... O-O {[%clk 0:03:06.6]} 12. b4 {[%clk 0:02:52.2]} 12... Nbd7 {[%clk
0:03:06.5]} 13. Bd2 {[%clk 0:02:45.8]} 13... Nb6 {[%clk 0:02:55.2]} 14. Ne5
{[%clk 0:02:44.6]} 14... a5 {[%clk 0:02:50]} 15. Ne4 {[%clk 0:02:42]} 15... axb4
{[%clk 0:02:46.4]} 16. Bxb4 {[%clk 0:02:29.2]} 16... Bxb4 {[%clk 0:02:41.5]} 17.
axb4 {[%clk 0:02:30]} 17... Nfd5 {[%clk 0:02:32.8]} 18. Nxc6 {[%clk 0:02:09.4]}
18... Bxc6 {[%clk 0:01:25.5]} 19. Qxc6 {[%clk 0:02:08.7]} 19... Nxb4 {[%clk
0:01:26.7]} 20. Qxb5 {[%clk 0:02:09.4]} 20... Nxd3 {[%clk 0:01:19.2]} 21. Qxd3
{[%clk 0:02:09.4]} 21... Qh4 {[%clk 0:01:13]} 22. Nc5 {[%clk 0:02:04]} 22... Nd5
{[%clk 0:01:11.2]} 23. Nd7 {[%clk 0:02:00.3]} 23... Rfd8 {[%clk 0:01:11.7]} 24.
Ne5 {[%clk 0:02:00]} 24... Rac8 {[%clk 0:01:05]} 25. Rfc1 {[%clk 0:01:58.8]}
25... Nb4 {[%clk 0:01:02.4]} 26. Qb3 {[%clk 0:01:53.4]} 26... Rb8 {[%clk
0:00:59.6]} 27. Qc4 {[%clk 0:01:49.7]} 27... h6 {[%clk 0:00:57.7]} 28. Qc7
{[%clk 0:01:50.3]} 28... Qf6 {[%clk 0:00:56.9]} 29. Rab1 {[%clk 0:01:46.9]}
29... Nd5 {[%clk 0:00:33.2]} 30. Qxb8 {[%clk 0:01:18.5]} 30... Rxb8 {[%clk
0:00:33.1]} 31. Rxb8+ {[%clk 0:01:20.4]} 31... Kh7 {[%clk 0:00:34.4]} 32. Rcc8
{[%clk 0:01:21.6]} 32... g5 {[%clk 0:00:19.7]} 33. Rf8 {[%clk 0:01:19.7]} 33...
Kg7 {[%clk 0:00:13.2]} 34. Rxf7+ {[%clk 0:01:20.6]} 34... Qxf7 {[%clk
0:00:15.1]} 35. Nxf7 {[%clk 0:01:21.8]} 35... Kxf7 {[%clk 0:00:17]} 1-0

[Event "*** MasterClass Titled Tuesday Blitz"]
[Site "Chess.com"]
[Date "2017.12.05"]
[Round "6"]
[White "hectorfiori"]
[Black "northridgehawk"]
[Result "1-0"]
[WhiteElo "2206"]
[BlackElo "1969"]
[TimeControl "180+2"]
[EndTime "15:30:34 PST"]
[Termination "hectorfiori won by checkmate"]

1. e4 {[%clk 0:03:01.9]} 1... e5 {[%clk 0:02:47.7]} 2. Nf3 {[%clk 0:03:02.2]}
2... Nc6 {[%clk 0:02:45.1]} 3. d4 {[%clk 0:03:03]} 3... exd4 {[%clk 0:02:44.4]}
4. Nxd4 {[%clk 0:03:04.9]} 4... Nf6 {[%clk 0:02:44.5]} 5. Nxc6 {[%clk
0:03:01.3]} 5... bxc6 {[%clk 0:02:44.7]} 6. Qe2 {[%clk 0:03:02.3]} 6... Rb8
{[%clk 0:02:36.6]} 7. e5 {[%clk 0:02:58.6]} 7... Nd5 {[%clk 0:02:34.8]} 8. c4
{[%clk 0:02:56.6]} 8... Bb4+ {[%clk 0:02:13.2]} 9. Bd2 {[%clk 0:02:38.3]} 9...
Bxd2+ {[%clk 0:02:09.4]} 10. Nxd2 {[%clk 0:02:24]} 10... Nf4 {[%clk 0:02:09]}
11. Qe4 {[%clk 0:02:11.7]} 11... Ne6 {[%clk 0:02:03.4]} 12. O-O-O {[%clk
0:02:06.9]} 12... O-O {[%clk 0:01:52.6]} 13. f4 {[%clk 0:02:07]} 13... d5 {[%clk
0:01:50.8]} 14. Qe3 {[%clk 0:01:45.7]} 14... d4 {[%clk 0:01:12.3]} 15. Qf3
{[%clk 0:01:21.5]} 15... c5 {[%clk 0:00:50.7]} 16. Bd3 {[%clk 0:01:13.9]} 16...
f5 {[%clk 0:00:47.5]} 17. exf6 {[%clk 0:00:51.7]} 17... Qxf6 {[%clk 0:00:45.7]}
18. g3 {[%clk 0:00:50]} 18... Bb7 {[%clk 0:00:39.2]} 19. Ne4 {[%clk 0:00:48.8]}
19... Qe7 {[%clk 0:00:36.7]} 20. Rhe1 {[%clk 0:00:46.1]} 20... Qd7 {[%clk
0:00:36.1]} 21. Qg4 {[%clk 0:00:40.9]} 21... Qc6 {[%clk 0:00:33.8]} 22. Qh5
{[%clk 0:00:32.1]} 22... g6 {[%clk 0:00:28.5]} 23. Qh6 {[%clk 0:00:32.8]} 23...
Qb6 {[%clk 0:00:24.2]} 24. b3 {[%clk 0:00:31.4]} 24... Qa5 {[%clk 0:00:21.7]}
25. Kb1 {[%clk 0:00:25.3]} 25... Ng7 {[%clk 0:00:18.6]} 26. Ng5 {[%clk
0:00:24.1]} 26... Rfe8 {[%clk 0:00:11.6]} 27. Qxh7+ {[%clk 0:00:23]} 27... Kf8
{[%clk 0:00:12.1]} 28. Qh8# {[%clk 0:00:23.9]} 1-0

[Event "*** MasterClass Titled Tuesday Blitz"]
[Site "Chess.com"]
[Date "2017.12.05"]
[Round "6"]
[White "GameOverBro"]
[Black "TheBigBoss04"]
[Result "1-0"]
[WhiteElo "2322"]
[BlackElo "2497"]
[TimeControl "180+2"]
[EndTime "15:30:38 PST"]
[Termination "GameOverBro won on time"]

1. e4 {[%clk 0:03:01.9]} 1... g6 {[%clk 0:02:58.3]} 2. d4 {[%clk 0:03:02.3]}
2... Bg7 {[%clk 0:02:59.1]} 3. Nc3 {[%clk 0:03:01.7]} 3... d6 {[%clk 0:02:59.7]}
4. Nf3 {[%clk 0:02:57.7]} 4... a6 {[%clk 0:03:00.2]} 5. a4 {[%clk 0:02:48.1]}
5... b6 {[%clk 0:02:59]} 6. Bc4 {[%clk 0:02:48.4]} 6... Bb7 {[%clk 0:02:58.2]}
7. Qe2 {[%clk 0:02:47.4]} 7... e6 {[%clk 0:02:56.2]} 8. O-O {[%clk 0:02:46.6]}
8... Nd7 {[%clk 0:02:53.9]} 9. b4 {[%clk 0:02:42.2]} 9... Ne7 {[%clk 0:02:40.9]}
10. b5 {[%clk 0:02:41]} 10... axb5 {[%clk 0:02:38.9]} 11. Bxb5 {[%clk
0:02:37.2]} 11... c6 {[%clk 0:02:37.6]} 12. Bd3 {[%clk 0:02:31.6]} 12... Qc7
{[%clk 0:02:33.4]} 13. h3 {[%clk 0:02:29.8]} 13... O-O {[%clk 0:02:28.6]} 14.
Bf4 {[%clk 0:02:30.6]} 14... e5 {[%clk 0:02:27.2]} 15. dxe5 {[%clk 0:02:25.8]}
15... dxe5 {[%clk 0:02:25]} 16. Bg5 {[%clk 0:02:25.5]} 16... Nc5 {[%clk
0:02:23.1]} 17. Bc4 {[%clk 0:02:26.3]} 17... Ba6 {[%clk 0:02:18.6]} 18. Be3
{[%clk 0:02:16.8]} 18... Bc8 {[%clk 0:02:01.3]} 19. a5 {[%clk 0:02:09.7]} 19...
b5 {[%clk 0:01:34.6]} 20. Bxc5 {[%clk 0:02:09]} 20... bxc4 {[%clk 0:01:35.7]}
21. Rfb1 {[%clk 0:01:57.2]} 21... Ba6 {[%clk 0:01:29.2]} 22. Rb6 {[%clk
0:01:57.4]} 22... Rfd8 {[%clk 0:01:22.6]} 23. Rab1 {[%clk 0:01:43.5]} 23... Nc8
{[%clk 0:01:21.6]} 24. Nd2 {[%clk 0:01:34.9]} 24... Qd7 {[%clk 0:01:12.3]} 25.
Nxc4 {[%clk 0:01:34]} 25... Nxb6 {[%clk 0:01:12.1]} 26. axb6 {[%clk 0:01:30.2]}
26... Bf8 {[%clk 0:01:06]} 27. Bxf8 {[%clk 0:01:23.6]} 27... Kxf8 {[%clk
0:01:03.6]} 28. b7 {[%clk 0:00:57.2]} 28... Rab8 {[%clk 0:00:52.1]} 29. Rb6
{[%clk 0:00:57.8]} 1-0

[Event "*** MasterClass Titled Tuesday Blitz"]
[Site "Chess.com"]
[Date "2017.12.05"]
[Round "6"]
[White "saraiva_80"]
[Black "HolyInquisitor0001"]
[Result "1/2-1/2"]
[WhiteElo "1355"]
[BlackElo "1653"]
[TimeControl "180+2"]
[EndTime "15:31:06 PST"]
[Termination "Game drawn - insufficient material"]

1. Nf3 {[%clk 0:02:57.5]} 1... Nf6 {[%clk 0:02:59.6]} 2. c4 {[%clk 0:02:58]}
2... g6 {[%clk 0:03:00.2]} 3. g3 {[%clk 0:02:56.8]} 3... Bg7 {[%clk 0:03:00.7]}
4. Bg2 {[%clk 0:02:57.6]} 4... O-O {[%clk 0:03:01.9]} 5. d4 {[%clk 0:02:58.5]}
5... d6 {[%clk 0:03:03]} 6. O-O {[%clk 0:02:57.5]} 6... Nc6 {[%clk 0:03:02.8]}
7. Bd2 {[%clk 0:02:36.4]} 7... Bg4 {[%clk 0:02:48.2]} 8. d5 {[%clk 0:02:36.6]}
8... Bxf3 {[%clk 0:02:37.4]} 9. exf3 {[%clk 0:02:35.2]} 9... Ne5 {[%clk
0:02:31.7]} 10. b3 {[%clk 0:02:31.4]} 10... Ned7 {[%clk 0:01:51]} 11. Bc3 {[%clk
0:02:29.2]} 11... c6 {[%clk 0:01:47.8]} 12. dxc6 {[%clk 0:02:19.6]} 12... bxc6
{[%clk 0:01:47.7]} 13. Re1 {[%clk 0:02:16.9]} 13... d5 {[%clk 0:01:37]} 14. f4
{[%clk 0:02:13.2]} 14... e6 {[%clk 0:01:28.4]} 15. cxd5 {[%clk 0:02:07.4]} 15...
cxd5 {[%clk 0:01:25.3]} 16. Qd4 {[%clk 0:02:05.5]} 16... a5 {[%clk 0:00:51.4]}
17. Nd2 {[%clk 0:01:57.8]} 17... Qb6 {[%clk 0:00:46.2]} 18. Qxb6 {[%clk
0:01:52.7]} 18... Nxb6 {[%clk 0:00:46.3]} 19. a4 {[%clk 0:01:52.2]} 19... Rfc8
{[%clk 0:00:42.8]} 20. Rac1 {[%clk 0:01:52.1]} 20... Nbd7 {[%clk 0:00:40.9]} 21.
Nf3 {[%clk 0:01:50.6]} 21... Ne4 {[%clk 0:00:37.6]} 22. Bxg7 {[%clk 0:01:49]}
22... Kxg7 {[%clk 0:00:38.4]} 23. Nd4 {[%clk 0:01:47.5]} 23... Rxc1 {[%clk
0:00:36.1]} 24. Rxc1 {[%clk 0:01:47.3]} 24... Rb8 {[%clk 0:00:36]} 25. Bxe4
{[%clk 0:01:46.4]} 25... dxe4 {[%clk 0:00:36.4]} 26. Nc6 {[%clk 0:01:44.4]}
26... Rxb3 {[%clk 0:00:33.5]} 27. Nxa5 {[%clk 0:01:44.1]} 27... Ra3 {[%clk
0:00:30]} 28. Rc4 {[%clk 0:01:40.4]} 28... Nb6 {[%clk 0:00:27]} 29. Rxe4 {[%clk
0:01:39.7]} 29... Rxa4 {[%clk 0:00:26.2]} 30. Rxa4 {[%clk 0:01:39.9]} 30... Nxa4
{[%clk 0:00:27.5]} 31. Nc4 {[%clk 0:01:40.2]} 31... Nc5 {[%clk 0:00:27.5]} 32.
Kg2 {[%clk 0:01:39.5]} 32... Kf6 {[%clk 0:00:24.8]} 33. Ne3 {[%clk 0:01:38.4]}
33... Ke7 {[%clk 0:00:24.2]} 34. Ng4 {[%clk 0:01:37.3]} 34... h5 {[%clk
0:00:22.2]} 35. Ne3 {[%clk 0:01:37.2]} 35... f6 {[%clk 0:00:21.8]} 36. Kf3
{[%clk 0:01:38.2]} 36... Kd6 {[%clk 0:00:22]} 37. h3 {[%clk 0:01:38.7]} 37...
Nd7 {[%clk 0:00:20.4]} 38. g4 {[%clk 0:01:38]} 38... hxg4+ {[%clk 0:00:21.3]}
39. hxg4 {[%clk 0:01:38.9]} 39... Nb6 {[%clk 0:00:22.8]} 40. Ke2 {[%clk
0:01:39.2]} 40... Nd5 {[%clk 0:00:23.7]} 41. Nxd5 {[%clk 0:01:39.6]} 41... Kxd5
{[%clk 0:00:25.1]} 42. Ke3 {[%clk 0:01:41.4]} 42... e5 {[%clk 0:00:26]} 43. f3
{[%clk 0:01:40.6]} 43... exf4+ {[%clk 0:00:25.6]} 44. Kxf4 {[%clk 0:01:40.9]}
44... Ke6 {[%clk 0:00:27]} 45. Ke4 {[%clk 0:01:41.5]} 45... g5 {[%clk
0:00:27.3]} 46. f4 {[%clk 0:01:42.7]} 46... gxf4 {[%clk 0:00:28.4]} 47. Kxf4
{[%clk 0:01:43.8]} 47... Ke7 {[%clk 0:00:28.2]} 48. Kf5 {[%clk 0:01:44.9]} 48...
Kf7 {[%clk 0:00:29.3]} 49. g5 {[%clk 0:01:45.1]} 49... fxg5 {[%clk 0:00:29.9]}
50. Kxg5 {[%clk 0:01:46.2]} 1/2-1/2